bitfinex/quotes_ETHUSD_20250731
["timestamp","ask_amount","ask_price","bid_price","bid_amount"]
[1753922451463,1.7335,3847.8,3847.1,0.04]
[1753922451974,0.4462,3847.7,3847.1,0.04]
[1753922452316,0.17335,3847.6,3847.1,0.04]
[1753922452785,0.9592,3847.5,3847.1,0.04]
[1753922452992,0.8148,3847.4,3847.1,0.04]
[1753922453143,1.774,3847.4,3847.1,0.04]
[1753922453345,0.9592,3847.3,3847.1,0.04]
[1753922453851,0.513,3847.2,3847.1,0.04]
[1753922454262,0.9592,3847.2,3847.1,0.04]
[1753922454986,0.8148,3847.4,3847.1,0.04]
[1753922455954,0.8148,3847.4,3847.1,2.63935904]
[1753922456255,0.8148,3847.4,3847.1,0.04]
[1753922456667,0.513,3847.3,3847.1,0.04]
[1753922456966,1.09198,3847.3,3847.1,0.04]
[1753922457161,0.9592,3847.2,3847.1,0.04]
[1753922457550,0.13278,3847.3,3847.1,0.04]
[1753922457753,0.513,3847.2,3847.1,0.04]
[1753922458179,0.9592,3847.2,3847.1,0.04]
[1753922458378,0.513,3847.2,3847.1,0.04]
[1753922458572,0.9592,3847.2,3847.1,0.04]
[1753922459881,0.513,3847.2,3847.1,0.04]
[1753922460081,0.65874,3847.2,3847.1,0.04]
[1753922460482,1.10494,3847.2,3847.1,0.04]
[1753922460789,0.14574,3847.2,3847.1,0.04]
[1753922461120,0.8148,3847.4,3847.1,0.04]
[1753922461497,0.99169031,3847.3,3847.1,0.04]
[1753922461691,0.9592,3847.3,3847.1,0.04]
[1753922462026,0.8148,3847.4,3847.1,0.04]
[1753922462176,0.8148,3847.4,3847.1,0.041]
[1753922462731,0.8148,3847.4,3847.2,0.97804937]
[1753922463017,0.84558103,3848.4,3847.3,0.9654]
[1753922463423,3.0,3848.1,3847.3,0.9654]
[1753922463599,3.0,3848.1,3847.3,0.5323]
[1753922463818,1.7708,3848.0,3847.1,0.041]
[1753922464118,0.7552,3847.8,3847.1,0.041]
[1753922464329,0.7552,3847.8,3847.2,2.59929299]
[1753922464623,0.8267,3848.7,3847.9,2.59881034]
[1753922464917,0.8267,3848.7,3848.0,0.9654]
[1753922465121,0.002,3849.1,3848.6,2.59834745]
[1753922465307,0.002,3849.1,3848.1,0.97803145]
[1753922465513,0.002,3849.1,3848.1,0.9654]
[1753922465710,0.13617,3849.1,3848.5,2.59840638]
[1753922465912,0.13617,3849.1,3848.1,0.4331]
[1753922466122,0.13617,3849.1,3847.8,3.13372424]
[1753922466123,0.002,3849.1,3848.4,0.55]
[1753922466329,0.002,3849.1,3849.0,2.59807742]
[1753922466844,0.002,3849.1,3849.0,3.56347742]
[1753922467406,0.002,3849.1,3846.8,2.59954115]
[1753922467407,0.515,3849.1,3847.7,0.4331]
[1753922467745,3.0,3848.8,3847.7,0.4331]
[1753922467944,0.03247765,3848.8,3847.7,0.4331]
[1753922468144,0.13024,3849.0,3847.8,0.5323]
[1753922468454,0.002,3849.1,3848.0,0.5349]
[1753922468743,0.002,3849.1,3849.0,2.59807742]
[1753922468945,0.002,3849.1,3848.2,0.55]
[1753922469247,0.002,3849.1,3848.9,0.9654]
[1753922469452,0.002,3849.1,3849.0,2.59807742]
[1753922469812,0.002,3849.1,3849.0,3.56347742]
[1753922470018,0.002,3849.1,3849.0,0.9654]
[1753922470421,0.002,3849.1,3848.2,0.001]
[1753922470850,0.7759,3849.0,3848.8,0.1296]
[1753922471054,0.7759,3849.0,3848.2,0.001]
[1753922471255,0.513,3848.9,3848.2,0.001]
[1753922472575,0.7759,3849.0,3848.2,0.001]
[1753922472942,0.7759,3849.0,3848.2,3.03269618]
[1753922473142,0.7759,3849.0,3848.4,2.59845762]
[1753922473372,0.7759,3849.0,3848.3,0.5323]
[1753922473527,0.7759,3849.0,3848.5,2.59841231]
[1753922473924,0.7759,3849.0,3848.6,0.5109]
[1753922474359,0.7759,3849.0,3848.7,0.9433]
[1753922474558,0.7759,3849.0,3848.2,0.9443]
[1753922474865,0.7759,3849.0,3848.2,0.001]
[1753922475023,1.3334,3849.0,3848.2,0.001]
[1753922475334,0.13354,3848.9,3848.2,0.001]
[1753922477126,0.58997765,3848.8,3848.2,0.001]
[1753922477474,2.59847252,3848.5,3848.2,0.001]
[1753922477713,6.37675,3848.3,3846.5,3.11061368]
[1753922477858,3.0,3847.9,3846.5,0.5109]
[1753922478062,0.8256,3847.8,3846.6,0.01264794]
[1753922478365,0.64092302,3848.2,3846.6,0.01264794]
[1753922478366,0.95914,3848.9,3847.3,2.59917019]
[1753922478561,0.95914,3848.9,3847.2,0.5359]
[1753922478562,0.8256,3848.9,3847.4,0.5109]
[1753922478769,0.8256,3848.9,3847.9,2.59881238]
[1753922479095,0.8256,3848.9,3847.8,0.5109]
[1753922479261,0.8256,3848.9,3848.1,2.5986714]
[1753922479465,0.8256,3848.9,3848.4,2.59842413]
[1753922479665,0.8256,3848.9,3848.2,2.59860413]
[1753922479861,0.8256,3848.9,3848.0,0.9433]
[1753922480104,0.8256,3848.9,3848.5,2.59839653]
[1753922480263,0.8256,3848.9,3848.1,0.01263009]
[1753922480469,0.7539,3849.4,3848.4,2.59848248]
[1753922480700,0.24261806,3849.3,3849.0,2.59807742]
[1753922481066,0.04,3849.9,3849.0,3.5539964]
[1753922481272,0.8623,3849.9,3849.0,3.67097742]
[1753922481596,0.03246921,3849.8,3849.0,2.72767742]
[1753922482187,1.4198,3849.9,3849.0,2.72767742]
[1753922482495,0.03246921,3849.8,3849.0,2.72767742]
[1753922482710,1.4198,3849.9,3849.0,2.72767742]
[1753922482711,1.4198,3849.9,3849.0,0.1296]
[1753922482864,0.1296,3849.8,3849.0,0.1296]
[1753922483573,0.8623,3849.9,3849.0,3.67097742]
[1753922483890,0.8623,3849.9,3849.0,4.22097742]
[1753922484411,1.8012,3849.1,3847.7,0.5109]
[1753922484616,0.5575,3849.0,3847.7,0.5109]
[1753922484770,0.18012,3848.9,3847.8,2.59888767]
[1753922484970,0.18012,3848.9,3847.7,0.5109]
[1753922485210,0.18012,3848.9,3847.8,2.59888767]
[1753922485420,0.8109,3849.1,3847.9,0.95593211]
[1753922485722,0.03247596,3849.0,3847.9,0.9433]
[1753922486025,0.8109,3849.1,3847.9,0.9433]
[1753922486205,0.5575,3849.0,3847.9,3.54211927]
[1753922486381,0.8109,3849.1,3848.0,2.59869665]
[1753922486579,0.8109,3849.1,3848.1,0.55]
[1753922486876,0.8109,3849.1,3848.2,0.9433]
[1753922487087,0.8109,3849.1,3848.4,2.59846008]
[1753922487274,0.8109,3849.1,3848.4,2.61108478]
[1753922487475,0.002,3848.9,3848.6,2.59832614]
[1753922487830,0.002,3848.9,3848.1,0.5359]
[1753922488032,0.002,3848.9,3848.8,2.59821242]
[1753922488536,0.002,3848.9,3848.8,3.54151242]
[1753922489717,0.002,3848.9,3848.8,0.9433]
[1753922489896,0.002,3848.9,3848.8,3.54151242]
[1753922490220,0.002,3848.9,3848.4,0.5109]
[1753922490405,0.002,3848.9,3848.4,3.65937297]
[1753922490611,0.002,3848.9,3848.5,2.59837305]
[1753922490934,0.002,3848.9,3848.8,2.59821242]
[1753922491083,0.002,3848.9,3848.7,2.59827647]
[1753922491452,0.002,3848.9,3848.8,2.61083545]
[1753922491628,0.002,3848.9,3848.8,3.54151242]
[1753922494334,0.002,3848.9,3848.8,3.67111242]
[1753922496031,0.002,3848.9,3848.8,4.22111242]
[1753922496545,0.002,3848.9,3848.8,3.67111242]
[1753922497414,0.002,3848.9,3848.8,4.22111242]
[1753922498041,0.04,3849.9,3849.8,2.59753753]
[1753922498347,0.04,3849.9,3849.8,4.09083753]
[1753922500132,0.04,3849.9,3849.8,3.54083753]
[1753922500521,0.04,3849.9,3849.8,4.09083753]
[1753922501340,0.809,3850.9,3849.8,4.09083753]
[1753922501341,0.809,3850.9,3849.9,0.55]
[1753922501525,0.809,3850.9,3850.5,2.59703405]
[1753922501728,0.04,3850.9,3849.8,0.55]
[1753922501926,0.04,3850.9,3850.1,3.10823355]
[1753922502133,0.04,3850.9,3850.3,2.59715349]
[1753922502348,0.04,3850.9,3850.4,2.5971018]
[1753922502543,0.5975,3850.9,3850.4,2.5971018]
[1753922502756,0.22369,3850.9,3850.0,0.4324]
[1753922502954,0.5575,3850.8,3850.0,2.59739276]
[1753922503251,0.7697,3850.7,3849.2,2.59794242]
[1753922503414,0.721299,3850.6,3849.1,1.0431]
[1753922503611,0.721299,3850.6,3849.9,2.59740818]
[1753922503950,0.7697,3850.7,3850.0,0.01259939]
[1753922504156,0.7697,3850.7,3850.0,0.55]
[1753922504363,0.04,3850.9,3850.8,3.14686298]
[1753922504565,0.04,3850.9,3850.8,2.59686298]
[1753922504925,0.04,3850.9,3850.8,3.55096298]
[1753922505364,0.04,3850.9,3850.8,2.59686298]
[1753922506466,0.04,3850.9,3850.8,3.10406298]
[1753922507532,0.04,3850.9,3850.8,3.65406298]
[1753922507737,0.04,3850.9,3850.8,4.10096298]
[1753922508192,0.04,3850.9,3850.8,4.23056298]
[1753922510283,0.042,3850.9,3850.8,4.23056298]
[1753922513458,0.042,3850.9,3850.8,0.1296]
[1753922513669,0.042,3850.9,3850.8,2.72646298]
[1753922516194,0.042,3850.9,3850.8,0.1296]
[1753922516393,1.7901,3850.9,3849.5,1.49]
[1753922516613,0.70051,3850.8,3850.1,2.59733332]
[1753922517010,0.70051,3850.8,3849.5,0.9541]
[1753922517011,0.5215,3850.7,3849.5,0.9541]
[1753922517317,0.9686,3850.7,3849.8,2.5974811]
[1753922517604,0.718411,3850.6,3849.8,2.5974811]
[1753922517806,0.718411,3850.6,3849.5,0.9541]
[1753922517807,0.718411,3850.6,3849.9,2.59746494]
[1753922518483,0.718411,3850.6,3850.0,2.5973858]
[1753922518679,0.196911,3850.6,3850.0,2.5973858]
[1753922518891,0.8215,3850.9,3850.2,0.55]
[1753922519067,0.8215,3850.9,3850.3,2.60979454]
[1753922519267,0.8215,3850.9,3850.4,2.59713276]
[1753922519669,0.8215,3850.9,3850.3,2.5971392]
[1753922519880,1.343,3850.9,3850.2,0.55]
[1753922520102,1.343,3850.9,3850.6,2.596995]
[1753922520402,0.8215,3850.9,3850.3,2.59720021]
[1753922520601,0.8215,3850.9,3850.2,0.55]
[1753922520788,0.8215,3850.9,3850.2,3.14725977]
[1753922520988,0.8215,3850.9,3850.2,3.14720632]
[1753922521190,0.1343,3850.8,3850.3,2.59719737]
[1753922521395,0.6558,3850.8,3850.1,2.59732262]
[1753922521787,0.03246163,3850.7,3849.8,0.5072]
[1753922522009,0.5215,3850.6,3850.1,2.59733503]
[1753922522213,0.5215,3850.6,3849.7,2.597605]
[1753922522214,0.5215,3850.5,3849.7,2.597605]
[1753922522791,0.5215,3850.5,3849.8,2.59751709]
[1753922522981,0.5215,3850.5,3849.5,0.55]
[1753922523179,1.2581,3850.4,3849.0,0.5072]
[1753922523428,1.90510776,3850.3,3848.7,1.0431]
[1753922523594,0.5215,3850.2,3849.2,2.59790347]
[1753922523927,0.5215,3850.2,3848.9,2.59807997]
[1753922524092,0.5215,3850.2,3848.9,0.5072]
[1753922524293,0.5215,3850.2,3849.4,2.59774923]
[1753922524484,0.17796,3850.1,3849.4,2.59774923]
[1753922524683,0.17796,3850.1,3849.1,3.10520417]
[1753922524882,0.03246753,3850.0,3849.2,2.59791662]
[1753922525491,0.03246753,3850.0,3849.1,0.5072]
[1753922525688,0.03246753,3850.0,3849.2,2.59794242]
[1753922525889,0.03246753,3850.0,3849.2,2.59793612]
[1753922526212,0.03246753,3850.0,3849.3,2.59786868]
[1753922526412,0.17796,3850.1,3849.8,0.1296]
[1753922526825,0.17796,3850.1,3849.8,2.7271346]
[1753922527406,0.17796,3850.1,3849.8,0.1296]
[1753922527733,0.811,3850.4,3850.0,0.1296]
[1753922527941,1.3325,3850.4,3849.9,0.1296]
[1753922528144,0.16577862,3850.3,3850.1,0.1296]
[1753922528294,0.811,3850.4,3850.1,0.1296]
[1753922528492,0.811,3850.4,3850.3,2.72680021]
[1753922528729,0.04,3851.9,3850.4,0.5359]
[1753922528910,0.8018,3851.3,3850.3,0.9541]
[1753922529234,0.8018,3851.3,3850.8,0.1296]
[1753922529600,0.8018,3851.3,3850.8,3.68056298]
[1753922530101,1e-08,3850.9,3850.8,4.63686298]
[1753922530845,1e-08,3850.9,3850.8,3.55096298]
[1753922531510,1e-08,3850.9,3850.8,4.10096298]
[1753922531712,1e-08,3850.9,3850.8,3.55096298]
[1753922531918,1e-08,3850.9,3850.4,0.9541]
[1753922532100,1e-08,3850.9,3850.5,2.59705025]
[1753922532294,1e-08,3850.9,3850.6,2.59699214]
[1753922532500,1e-08,3850.9,3850.4,0.9541]
[1753922532808,1e-08,3850.9,3850.6,2.5969877]
[1753922533211,1e-08,3850.9,3849.8,0.5359]
[1753922533414,0.53750001,3850.9,3850.3,2.59719823]
[1753922533616,1e-08,3850.9,3850.4,0.9792]
[1753922533844,1e-08,3850.9,3850.7,2.59689123]
[1753922534043,1e-08,3850.9,3850.6,2.59698478]
[1753922534336,1e-08,3850.9,3850.1,0.4476]
[1753922534538,1e-08,3850.9,3850.5,2.5970037]
[1753922534735,1e-08,3850.9,3850.2,2.5972533]
[1753922535127,1e-08,3850.9,3850.6,2.5969354]
[1753922535435,1e-08,3850.9,3850.0,0.5316]
[1753922535640,1e-08,3850.9,3850.4,2.59712029]
[1753922535940,1e-08,3850.9,3850.4,2.59710508]
[1753922536149,1e-08,3850.9,3849.4,0.001]
[1753922536150,7.38979147,3850.7,3849.4,0.001]
[1753922536343,1.40697915,3850.6,3849.4,0.001]
[1753922536499,0.7675,3850.5,3849.4,0.001]
[1753922536700,0.7675,3850.5,3849.5,2.59773996]
[1753922536901,0.7675,3850.5,3849.6,2.59766536]
[1753922537207,0.9813,3850.4,3849.4,0.001]
[1753922537400,0.032465,3850.3,3849.4,0.001]
[1753922537831,0.7796,3850.2,3849.4,0.001]
[1753922538050,1.3171,3850.2,3849.4,0.001]
[1753922538226,1.3171,3850.2,3849.4,2.59878717]
[1753922538425,1.58345771,3850.2,3849.4,2.59878717]
[1753922538747,1.58345771,3850.2,3849.5,2.59773761]
[1753922538946,1.58345771,3850.2,3849.6,2.59764699]
[1753922539469,0.7796,3850.2,3849.6,0.5316]
[1753922539674,0.7796,3850.2,3849.7,2.597605]
[1753922539971,0.7796,3850.2,3849.6,2.59766641]
[1753922540172,0.7796,3850.2,3849.9,0.1296]
[1753922540470,0.92427,3850.2,3849.9,0.1296]
[1753922541058,0.7796,3850.2,3849.9,0.1296]
[1753922541267,0.7796,3850.2,3850.1,0.1296]
[1753922543362,0.1296,3850.8,3850.1,0.1296]
[1753922543933,0.1296,3850.8,3850.1,2.59728775]
[1753922544239,0.24294492,3850.9,3850.4,0.1296]
[1753922544240,0.1296,3850.9,3850.4,0.1296]
[1753922544654,0.1296,3850.9,3850.4,2.72672791]
[1753922544655,0.36649667,3850.9,3850.4,2.72672791]
[1753922544826,0.1296,3851.0,3850.4,0.1296]
[1753922545032,0.1296,3851.0,3850.4,2.72672145]
[1753922545227,0.1296,3851.0,3850.4,0.1296]
[1753922546356,0.1296,3851.0,3849.9,2.59741746]
[1753922546357,0.8241,3850.8,3849.7,0.5316]
[1753922546554,0.1296,3850.5,3850.0,0.1296]
[1753922546771,0.99037915,3850.5,3850.0,0.1296]
[1753922546971,0.7586,3850.3,3849.8,0.1296]
[1753922547149,0.8882,3850.3,3849.8,0.1296]
[1753922547338,0.2643,3850.2,3849.5,2.59768434]
[1753922547539,0.2643,3850.2,3849.7,0.1296]
[1753922547751,0.8882,3850.3,3849.7,0.1296]
[1753922548069,0.8882,3850.3,3849.8,2.59752248]
[1753922548432,0.8882,3850.3,3849.7,0.1296]
[1753922549871,7.38979147,3850.1,3849.4,0.001]
[1753922550180,7.51939147,3850.1,3849.6,0.1296]
[1753922550475,0.2643,3850.0,3849.6,0.1296]
[1753922550677,0.8008,3849.9,3849.6,0.1296]
[1753922551237,0.8008,3849.9,3849.4,0.001]
[1753922551238,0.28417402,3849.8,3849.4,0.001]
[1753922551551,0.7676,3849.5,3849.4,0.001]
[1753922551864,0.78747402,3849.5,3849.4,0.001]
[1753922552055,1.21947402,3849.5,3849.4,0.001]
[1753922552836,1.42444016,3849.5,3849.4,0.001]
[1753922553053,2.42716524,3849.5,3849.4,0.001]
[1753922553251,35.25377873,3849.5,3849.4,0.001]
[1753922553487,6.36864242,3849.2,3849.1,0.04]
[1753922553783,14.13087337,3849.2,3849.1,0.04]
[1753922553988,16.01288822,3849.2,3849.1,0.04]
[1753922554592,13.65765853,3849.2,3849.1,0.04]
[1753922554754,46.25560095,3849.2,3849.1,0.04]
[1753922557095,2.96546706,3849.2,3849.1,0.04]
[1753922557391,0.1296,3849.6,3849.1,1.1488]
[1753922557580,0.1296,3849.6,3849.2,0.9792]
[1753922557971,0.1296,3849.6,3849.3,0.9792]
[1753922558166,0.1296,3849.8,3849.4,0.9792]
[1753922558372,0.1296,3849.8,3849.5,0.9792]
[1753922558584,0.1296,3849.8,3849.6,0.9792]
[1753922558779,0.1296,3849.8,3849.7,0.9792]
[1753922559858,0.1296,3849.8,3849.7,0.5316]
[1753922560064,0.1296,3849.8,3849.3,0.9792]
[1753922560260,0.01987402,3849.7,3849.3,0.9792]
[1753922560959,0.8124,3849.6,3849.1,0.1696]
[1753922561159,0.01987402,3849.5,3849.1,0.04]
[1753922561365,0.942,3849.2,3849.1,0.04]
[1753922561556,0.96187402,3849.2,3849.1,0.04]
[1753922561957,0.942,3849.2,3849.1,0.04]
[1753922563569,0.942,3849.2,3849.1,1.0313]
[1753922565021,0.8251,3849.6,3849.1,1.1609]
[1753922565224,0.1296,3849.8,3849.2,0.9913]
[1753922565382,0.1296,3849.8,3849.3,0.9913]
[1753922565571,0.1296,3849.8,3849.3,1.1209]
[1753922565766,0.1296,3849.8,3849.4,0.9913]
[1753922565985,0.1296,3849.8,3849.4,3.58907915]
[1753922566186,0.1296,3849.8,3849.5,0.9913]
[1753922566384,0.1296,3849.8,3849.6,0.5277]
[1753922566601,0.1296,3849.8,3849.6,0.9913]
[1753922566903,0.1296,3849.8,3849.7,0.9913]
[1753922567223,0.1296,3849.8,3849.7,0.9684]
[1753922567366,0.1296,3849.8,3849.7,0.5277]
[1753922567572,0.1296,3849.8,3849.4,0.5277]
[1753922567822,0.1296,3849.8,3849.3,0.1296]
[1753922567823,0.1296,3849.8,3849.5,0.5277]
[1753922567971,0.1296,3850.0,3849.5,0.6573]
[1753922568178,0.1296,3850.0,3849.5,0.1296]
[1753922568499,0.1296,3850.0,3849.6,0.5277]
[1753922568705,0.1296,3850.0,3849.5,0.1296]
[1753922568914,0.37193857,3850.0,3849.6,0.5277]
[1753922569096,0.7628,3850.6,3849.6,0.9913]
[1753922569297,0.1296,3850.1,3849.7,0.9913]
[1753922569498,0.1296,3850.1,3849.5,2.72727883]
[1753922569499,0.1296,3850.1,3849.8,0.9913]
[1753922571177,0.1296,3850.1,3849.9,0.5277]
[1753922571596,0.1296,3850.1,3849.9,0.9913]
[1753922572109,0.1296,3850.1,3849.5,1.1209]
[1753922572806,0.14947402,3850.1,3849.5,1.1209]
[1753922573507,0.81525915,3850.5,3849.4,0.5277]
[1753922573508,0.7987,3850.0,3849.4,0.5277]
[1753922573710,0.1296,3849.8,3849.5,0.9913]
[1753922573900,0.7987,3850.0,3849.6,0.9913]
[1753922574099,0.1296,3850.1,3849.7,0.9913]
[1753922574291,0.1296,3850.1,3849.8,0.9913]
[1753922574613,0.1296,3850.1,3849.9,0.9913]
[1753922574776,0.1296,3850.1,3850.0,0.9913]
[1753922575378,0.002,3850.9,3850.0,1.1209]
[1753922575379,0.1296,3850.6,3850.0,1.1209]
[1753922575610,0.1296,3850.6,3850.1,0.9913]
[1753922576015,0.1296,3850.6,3850.2,0.9913]
[1753922576187,0.1296,3850.6,3850.3,0.9913]
[1753922576533,0.7938,3850.8,3850.4,0.9913]
[1753922576682,0.1296,3850.7,3850.5,0.9913]
[1753922577025,0.1296,3850.7,3849.6,0.5932]
[1753922577026,0.1296,3850.1,3849.6,0.5932]
[1753922577330,0.1296,3850.1,3849.8,0.5277]
[1753922577812,0.1296,3850.1,3849.9,0.9913]
[1753922578187,0.1296,3850.1,3849.9,0.4636]
[1753922578387,0.1296,3850.1,3850.0,0.5277]
[1753922578728,0.24265846,3850.7,3850.0,4.40800259]
[1753922578888,0.1296,3850.7,3850.2,0.1296]
[1753922579312,7.38979147,3850.6,3850.0,0.5277]
[1753922579521,0.73897915,3850.5,3849.6,0.5277]
[1753922579720,0.1296,3850.1,3849.6,0.6573]
[1753922579920,0.1296,3850.1,3849.7,0.4636]
[1753922580284,0.1296,3850.1,3849.8,0.9913]
[1753922580526,0.1296,3850.1,3849.9,0.9913]
[1753922581328,0.1296,3850.1,3849.6,0.1296]
[1753922581495,0.7973,3850.1,3849.6,0.9913]
[1753922581717,0.1296,3849.9,3849.6,0.9913]
[1753922581921,0.1296,3849.9,3849.5,0.001]
[1753922582220,0.1296,3849.7,3849.5,0.001]
[1753922582405,0.7973,3850.1,3849.6,0.9913]
[1753922582726,0.9269,3850.1,3849.7,0.9913]
[1753922582921,0.9269,3850.1,3849.8,0.9913]
[1753922583099,0.9269,3850.1,3849.9,0.9913]
[1753922583423,0.1296,3850.1,3850.0,0.9913]
[1753922583586,0.1296,3850.3,3850.0,0.9913]
[1753922583915,0.1296,3850.3,3849.6,0.1296]
[1753922583916,0.1296,3850.3,3850.1,0.9913]
[1753922584116,0.8863,3850.6,3850.2,0.9913]
[1753922584321,0.8863,3850.6,3850.3,0.9913]
[1753922585243,0.002,3850.5,3850.3,0.4636]
[1753922585397,0.002,3850.5,3850.4,0.9913]
[1753922586225,0.002,3850.5,3850.4,4.33923276]
[1753922589618,0.002,3850.5,3850.4,4.36520408]
[1753922590001,0.002,3850.5,3850.4,4.33923276]
[1753922590326,0.002,3850.5,3850.4,4.36520408]
[1753922590536,0.002,3850.5,3850.4,4.33923276]
[1753922590924,0.002,3850.5,3850.4,4.91520408]
[1753922591117,0.002,3850.5,3850.4,7.88923276]
[1753922592126,0.04,3851.9,3851.2,0.7829]
[1753922592511,0.04,3851.9,3851.2,0.5277]
[1753922592932,0.7682,3851.7,3850.8,0.5277]
[1753922593136,0.7682,3851.7,3850.4,0.8005]
[1753922593137,1.35273886,3851.6,3850.5,0.5277]
[1753922593332,0.24267829,3851.5,3850.7,2.5969227]
[1753922593539,0.24267829,3851.5,3850.8,0.5128]
[1753922593743,0.24267829,3851.4,3850.8,0.5128]
[1753922593945,0.7682,3851.7,3850.8,3.10964386]
[1753922594262,0.24270998,3851.6,3850.8,3.10964386]
[1753922594432,0.24270998,3851.6,3850.9,2.59678712]
[1753922594625,0.24270998,3851.6,3850.9,3.54703908]
[1753922594820,0.24270998,3851.6,3851.0,0.5128]
[1753922595020,0.24270998,3851.6,3851.2,2.59658007]
[1753922595221,0.04,3851.9,3851.3,0.9503]
[1753922595714,0.2826978,3851.9,3851.3,0.9503]
[1753922596048,0.2426978,3851.8,3851.3,0.9503]
[1753922596247,0.2426978,3851.7,3851.4,1.0799]
[1753922596413,0.2826978,3851.9,3851.4,2.59644195]
[1753922596780,0.2826978,3851.9,3851.2,2.59656708]
[1753922596781,0.2427074,3851.8,3851.6,0.1296]
[1753922597049,0.2427074,3851.7,3851.6,0.1296]
[1753922597247,0.04,3851.9,3851.6,0.1296]
[1753922599036,0.04,3851.9,3851.7,4.3280473]
[1753922599243,0.04,3851.9,3851.7,3.5465473]
[1753922599554,0.04,3851.9,3851.8,2.59618879]
[1753922599767,0.04,3851.9,3851.8,3.10898879]
[1753922599929,0.04,3851.9,3851.8,0.5128]
[1753922602245,0.04,3851.9,3851.8,0.9503]
[1753922603950,0.04,3851.9,3851.8,1.0799]
[1753922604342,0.04,3851.9,3851.8,1.8614]
[1753922606372,0.04,3851.9,3851.1,0.7959]
[1753922606571,0.04,3851.9,3849.3,11.63979147]
[1753922606572,0.1296,3851.7,3851.2,0.6424]
[1753922607246,0.04,3851.9,3851.2,0.5128]
[1753922607446,0.7594,3851.7,3850.6,0.9503]
[1753922607665,0.84961655,3851.6,3850.6,0.9503]
[1753922609247,0.01987402,3851.5,3850.6,0.9503]
[1753922609454,0.01987402,3851.5,3850.3,0.5128]
[1753922609868,7.38979147,3851.4,3850.3,0.5128]
[1753922610066,0.01987402,3851.3,3850.3,0.5128]
[1753922610365,0.74096655,3851.2,3850.3,0.5128]
[1753922610771,0.01987402,3851.1,3850.3,0.5128]
[1753922611075,0.7834,3851.0,3850.3,0.5128]
[1753922611576,7.38979147,3850.9,3849.9,0.5128]
[1753922611819,1.08590317,3850.8,3849.6,0.5138]
[1753922611934,0.7834,3850.7,3849.6,0.5138]
[1753922612137,0.01987402,3850.6,3849.6,0.5138]
[1753922612347,0.7834,3850.7,3849.7,0.4375]
[1753922612547,0.7834,3850.7,3849.8,2.59753222]
[1753922612780,0.7834,3850.7,3849.9,3.54775232]
[1753922613086,0.7834,3850.7,3850.0,1.7255]
[1753922613269,0.7834,3850.7,3850.0,0.7752]
[1753922613440,0.7834,3850.7,3850.1,0.9503]
[1753922613643,0.7834,3850.7,3850.2,0.5128]
[1753922614042,0.7834,3850.7,3850.3,0.9503]
[1753922614261,0.7834,3850.7,3850.0,0.7752]
[1753922614471,0.7643,3851.5,3850.1,0.9503]
[1753922614668,1.10375148,3851.4,3850.2,0.5128]
[1753922614976,1.10375148,3851.4,3850.3,0.4375]
[1753922615578,1.10375148,3851.4,3850.4,0.5128]
[1753922615972,0.24597402,3851.3,3850.3,0.4375]
[1753922616277,0.24597402,3851.3,3849.6,0.001]
[1753922616278,0.7594,3851.0,3849.8,0.4375]
[1753922616583,0.7851,3850.8,3849.6,0.001]
[1753922616787,0.01987402,3850.7,3849.7,0.5128]
[1753922616996,2.84291995,3850.7,3849.7,0.5128]
[1753922617200,0.1296,3850.2,3849.7,0.5128]
[1753922617514,0.9147,3850.0,3849.6,0.4385]
[1753922617675,0.9147,3850.0,3849.6,0.001]
[1753922617854,0.01987402,3849.9,3849.6,0.001]
[1753922618054,0.9147,3850.0,3849.6,0.001]
[1753922618284,0.01987402,3849.9,3849.6,0.001]
[1753922618502,0.9147,3850.0,3849.6,0.001]
[1753922618684,0.7851,3850.0,3849.6,0.001]
[1753922618998,0.1296,3849.9,3849.7,0.9503]
[1753922619159,0.1296,3849.9,3849.8,0.9503]
[1753922619561,0.1296,3849.9,3849.8,0.5128]
[1753922620070,0.1296,3849.9,3849.6,0.001]
[1753922620976,0.1296,3849.9,3849.7,0.9503]
[1753922621177,0.1296,3849.9,3849.8,0.5128]
[1753922622462,0.1296,3849.9,3849.6,0.001]
[1753922622964,0.8841,3849.7,3849.6,0.001]
[1753922623195,1.29512,3849.7,3849.6,0.001]
[1753922623597,1.58222,3849.7,3849.6,0.001]
[1753922623798,1.52122,3849.7,3849.6,0.001]
[1753922624374,4.179825,3849.7,3849.6,0.001]
[1753922624587,1.58222,3849.7,3849.6,0.001]
[1753922625102,4.179825,3849.7,3849.6,0.001]
[1753922625465,14.56961647,3849.7,3849.6,0.001]
[1753922626259,44.56961647,3849.7,3849.6,0.001]
[1753922626677,44.56961647,3849.7,3849.3,0.001]
[1753922626678,0.7834,3849.5,3849.3,0.001]
[1753922626908,2.59818443,3848.9,3848.1,0.035]
[1753922627077,0.7834,3848.9,3848.1,0.035]
[1753922627369,0.1296,3848.2,3848.1,0.035]
[1753922628378,0.9428,3848.2,3848.1,0.035]
[1753922628591,0.1296,3848.2,3848.1,0.9992]
[1753922628996,0.1296,3848.4,3848.1,0.9992]
[1753922629180,0.1296,3848.4,3848.1,0.035]
[1753922629512,0.1296,3848.4,3848.2,0.9642]
[1753922629806,0.1296,3848.4,3848.3,0.9642]
[1753922630009,0.1296,3848.4,3848.1,0.035]
[1753922630010,0.1296,3848.4,3848.1,0.5672]
[1753922630196,0.1296,3848.4,3848.2,0.9642]